{"text_format":"1","workbook":"xlsx","n_sheets":2,"sheets":["Fall, 2016","Sheet1"],"not_rendered":{"charts":18,"images":0,"macros":1,"external_links":0,"defined_names":2,"comments":1,"pivot_tables":0},"unopened":[],"bounds":{"document_bytes":16777216,"sheet_cells":100000,"rows_first":2000,"rows_last":500,"rows_between":2000,"halvings":0,"cell_chars":16384,"cell_head_chars":4096},"cells_cut":0,"cells_raw":0,"read":"whole","date_system":"1900"}

{"sheet":"Fall, 2016","index":0,"n_rows":83,"n_cols":28,"rows_kept":83,"cut":false,"hidden":false,"merged":[]}
[null,null,null,"Chemistry",null,{"$f":"NOW()","v":"2021-08-09T11:19:11.200"},null,null,null,null,null,null,"Override"]
[null,null,null,null,null,"Fall, 2015",null,null,null,null,null,"Enrollment","Delivery"]
["Time","End","Days","Course #","Section","Course Title","Fee $","Hr","Instructor","Building","Room","Limit","Method"]
["08:00:00","08:50:00","MWF","CHM 1142","TBWA",{"$f":" INDEX(CourseProperties.4247525762[Course Title], MATCH(Schedule.4348535863[[#This Row],[Course '#]],CourseProperties.4247525762[Course '#]))","v":"General Chemistry I"},{"$f":" IF( INDEX(CourseProperties.4247525762[Fee $], MATCH(Schedule.4348535863[[#This Row],[Course '#]],CourseProperties.4247525762[Course '#])) = 0, \"\", INDEX(CourseProperties.4247525762[Fee $], MATCH(Schedule.4348535863[[#This Row],[Course '#]],CourseProperties.4247525762[Course '#])) )","v":""},{"$f":" INDEX(CourseProperties.4247525762[Hr], MATCH(Schedule.4348535863[[#This Row],[Course '#]],CourseProperties.4247525762[Course '#]))","v":3},"Gloria Pimienta","MSCX",214,55,"Web-enh"]
["09:00:00","09:50:00","MWF","CHM 1142","TCWA",{"$f":" INDEX(CourseProperties.4247525762[Course Title], MATCH(Schedule.4348535863[[#This Row],[Course '#]],CourseProperties.4247525762[Course '#]))","v":"General Chemistry I"},{"$f":" IF( INDEX(CourseProperties.4247525762[Fee $], MATCH(Schedule.4348535863[[#This Row],[Course '#]],CourseProperties.4247525762[Course '#])) = 0, \"\", INDEX(CourseProperties.4247525762[Fee $], MATCH(Schedule.4348535863[[#This Row],[Course '#]],CourseProperties.4247525762[Course '#])) )","v":""},{"$f":" INDEX(CourseProperties.4247525762[Hr], MATCH(Schedule.4348535863[[#This Row],[Course '#]],CourseProperties.4247525762[Course '#]))","v":3},"Gloria Pimienta","MSCX",214,55,"Web-enh",null,null,null,null,"Courses",null,null,null,"Default"]
["10:00:00","10:50:00","MWF","CHM 1142","TDWA",{"$f":" INDEX(CourseProperties.4247525762[Course Title], MATCH(Schedule.4348535863[[#This Row],[Course '#]],CourseProperties.4247525762[Course '#]))","v":"General Chemistry I"},{"$f":" IF( INDEX(CourseProperties.4247525762[Fee $], MATCH(Schedule.4348535863[[#This Row],[Course '#]],CourseProperties.4247525762[Course '#])) = 0, \"\", INDEX(CourseProperties.4247525762[Fee $], MATCH(Schedule.4348535863[[#This Row],[Course '#]],CourseProperties.4247525762[Course '#])) )","v":""},{"$f":" INDEX(CourseProperties.4247525762[Hr], MATCH(Schedule.4348535863[[#This Row],[Course '#]],CourseProperties.4247525762[Course '#]))","v":3},"Marna Barnett","MSCX",214,55,"Web-enh",null,"Course Properties",null,null,"That Must",null,null,"Weelky Contact","Delivery","Method",null,null,"Delivery Method (for Section Code)"]
["11:00:00","11:50:00","MWF","CHM 1142","TEWA",{"$f":" INDEX(CourseProperties.4247525762[Course Title], MATCH(Schedule.4348535863[[#This Row],[Course '#]],CourseProperties.4247525762[Course '#]))","v":"General Chemistry I"},{"$f":" IF( INDEX(CourseProperties.4247525762[Fee $], MATCH(Schedule.4348535863[[#This Row],[Course '#]],CourseProperties.4247525762[Course '#])) = 0, \"\", INDEX(CourseProperties.4247525762[Fee $], MATCH(Schedule.4348535863[[#This Row],[Course '#]],CourseProperties.4247525762[Course '#])) )","v":""},{"$f":" INDEX(CourseProperties.4247525762[Hr], MATCH(Schedule.4348535863[[#This Row],[Course '#]],CourseProperties.4247525762[Course '#]))","v":3},"Marna Barnett","MSCX",214,55,"Web-enh",null,"Course #","Course Title","Short Title","Not Conflict","Fee $","Hr","Time / minutes","Method","Letter","Possible",null,"Method","Description","Letter"]
["13:00:00","13:50:00","MWF","CHM 1142","TGWA",{"$f":" INDEX(CourseProperties.4247525762[Course Title], MATCH(Schedule.4348535863[[#This Row],[Course '#]],CourseProperties.4247525762[Course '#]))","v":"General Chemistry I"},{"$f":" IF( INDEX(CourseProperties.4247525762[Fee $], MATCH(Schedule.4348535863[[#This Row],[Course '#]],CourseProperties.4247525762[Course '#])) = 0, \"\", INDEX(CourseProperties.4247525762[Fee $], MATCH(Schedule.4348535863[[#This Row],[Course '#]],CourseProperties.4247525762[Course '#])) )","v":""},{"$f":" INDEX(CourseProperties.4247525762[Hr], MATCH(Schedule.4348535863[[#This Row],[Course '#]],CourseProperties.4247525762[Course '#]))","v":3},"Chris King","MSCX",112,48,"Web-enh",null,"CHM 1115","Survey of Chemistry","Survey Chem",null,null,3,150,"Lecture",{"$f":"IF(CourseProperties.4247525762[[#This Row],[Method]]<>\"\", VLOOKUP(CourseProperties.4247525762[[#This Row],[Method]], DeliveryMethod.4651566166[#Data],3,FALSE),\"\")","v":"A"},{"$f":"SUMIF(Schedule.4348535863[Course '#], CourseProperties.4247525762[[#This Row], [Course '#]], Schedule.4348535863[Limit])","v":0},null,"Lecture","In-classroom Lecture","A"]
["13:00:00","13:50:00","MWF","CHM 1142","TGWB",{"$f":" INDEX(CourseProperties.4247525762[Course Title], MATCH(Schedule.4348535863[[#This Row],[Course '#]],CourseProperties.4247525762[Course '#]))","v":"General Chemistry I"},{"$f":" IF( INDEX(CourseProperties.4247525762[Fee $], MATCH(Schedule.4348535863[[#This Row],[Course '#]],CourseProperties.4247525762[Course '#])) = 0, \"\", INDEX(CourseProperties.4247525762[Fee $], MATCH(Schedule.4348535863[[#This Row],[Course '#]],CourseProperties.4247525762[Course '#])) )","v":""},{"$f":" INDEX(CourseProperties.4247525762[Hr], MATCH(Schedule.4348535863[[#This Row],[Course '#]],CourseProperties.4247525762[Course '#]))","v":3},"Suzanne Lukjan","MSCX",214,55,"Web-enh",null,"CHM 1142","General Chemistry I","Gen Chem I",null,null,3,150,"Lecture",{"$f":"IF(CourseProperties.4247525762[[#This Row],[Method]]<>\"\", VLOOKUP(CourseProperties.4247525762[[#This Row],[Method]], DeliveryMethod.4651566166[#Data],3,FALSE),\"\")","v":"A"},{"$f":"SUMIF(Schedule.4348535863[Course '#], CourseProperties.4247525762[[#This Row], [Course '#]], Schedule.4348535863[Limit])","v":378},null,"Lab","In-classroom Lab","B"]
["14:00:00","14:50:00","MWF","CHM 1142","THWA",{"$f":" INDEX(CourseProperties.4247525762[Course Title], MATCH(Schedule.4348535863[[#This Row],[Course '#]],CourseProperties.4247525762[Course '#]))","v":"General Chemistry I"},{"$f":" IF( INDEX(CourseProperties.4247525762[Fee $], MATCH(Schedule.4348535863[[#This Row],[Course '#]],CourseProperties.4247525762[Course '#])) = 0, \"\", INDEX(CourseProperties.4247525762[Fee $], MATCH(Schedule.4348535863[[#This Row],[Course '#]],CourseProperties.4247525762[Course '#])) )","v":""},{"$f":" INDEX(CourseProperties.4247525762[Hr], MATCH(Schedule.4348535863[[#This Row],[Course '#]],CourseProperties.4247525762[Course '#]))","v":3},"Habib Rehman","MSCX",214,55,"Web-enh",null,"CHM 1143","General Chemistry II","Gen Chem II",3,null,3,150,"Lecture",{"$f":"IF(CourseProperties.4247525762[[#This Row],[Method]]<>\"\", VLOOKUP(CourseProperties.4247525762[[#This Row],[Method]], DeliveryMethod.4651566166[#Data],3,FALSE),\"\")","v":"A"},{"$f":"SUMIF(Schedule.4348535863[Course '#], CourseProperties.4247525762[[#This Row], [Course '#]], Schedule.4348535863[Limit])","v":78},null,"Cable","In-classroom Lecture:  live feed into local Cable TV","C"]
["09:00:00","09:50:00","MWF","CHM 1143","TCWA",{"$f":" INDEX(CourseProperties.4247525762[Course Title], MATCH(Schedule.4348535863[[#This Row],[Course '#]],CourseProperties.4247525762[Course '#]))","v":"General Chemistry II"},{"$f":" IF( INDEX(CourseProperties.4247525762[Fee $], MATCH(Schedule.4348535863[[#This Row],[Course '#]],CourseProperties.4247525762[Course '#])) = 0, \"\", INDEX(CourseProperties.4247525762[Fee $], MATCH(Schedule.4348535863[[#This Row],[Course '#]],CourseProperties.4247525762[Course '#])) )","v":""},{"$f":" INDEX(CourseProperties.4247525762[Hr], MATCH(Schedule.4348535863[[#This Row],[Course '#]],CourseProperties.4247525762[Course '#]))","v":3},"Chris King","MSCX",326,78,"Web-enh",null,"CHM 2242","Analytical Chemistry","Analyt Chm",null,null,3,150,"Lecture",{"$f":"IF(CourseProperties.4247525762[[#This Row],[Method]]<>\"\", VLOOKUP(CourseProperties.4247525762[[#This Row],[Method]], DeliveryMethod.4651566166[#Data],3,FALSE),\"\")","v":"A"},{"$f":"SUMIF(Schedule.4348535863[Course '#], CourseProperties.4247525762[[#This Row], [Course '#]], Schedule.4348535863[Limit])","v":24},null,"Video","In-classroom Lecture:  class proceedings video-taped","H"]
["08:00:00","08:50:00","MWF","CHM 2242","TBWA",{"$f":" INDEX(CourseProperties.4247525762[Course Title], MATCH(Schedule.4348535863[[#This Row],[Course '#]],CourseProperties.4247525762[Course '#]))","v":"Analytical Chemistry"},{"$f":" IF( INDEX(CourseProperties.4247525762[Fee $], MATCH(Schedule.4348535863[[#This Row],[Course '#]],CourseProperties.4247525762[Course '#])) = 0, \"\", INDEX(CourseProperties.4247525762[Fee $], MATCH(Schedule.4348535863[[#This Row],[Course '#]],CourseProperties.4247525762[Course '#])) )","v":""},{"$f":" INDEX(CourseProperties.4247525762[Hr], MATCH(Schedule.4348535863[[#This Row],[Course '#]],CourseProperties.4247525762[Course '#]))","v":3},"Shaoyang Liu","MSCX",318,24,"Web-enh",null,"CHM 3342","Organic Chemistry I","Organic I",6,null,3,150,"Lecture",{"$f":"IF(CourseProperties.4247525762[[#This Row],[Method]]<>\"\", VLOOKUP(CourseProperties.4247525762[[#This Row],[Method]], DeliveryMethod.4651566166[#Data],3,FALSE),\"\")","v":"A"},{"$f":"SUMIF(Schedule.4348535863[Course '#], CourseProperties.4247525762[[#This Row], [Course '#]], Schedule.4348535863[Limit])","v":75},null,"Internet","Internet","I"]
["09:00:00","09:50:00","MWF","CHM 2242","TCAA",{"$f":" INDEX(CourseProperties.4247525762[Course Title], MATCH(Schedule.4348535863[[#This Row],[Course '#]],CourseProperties.4247525762[Course '#]))","v":"Analytical Chemistry"},{"$f":" IF( INDEX(CourseProperties.4247525762[Fee $], MATCH(Schedule.4348535863[[#This Row],[Course '#]],CourseProperties.4247525762[Course '#])) = 0, \"\", INDEX(CourseProperties.4247525762[Fee $], MATCH(Schedule.4348535863[[#This Row],[Course '#]],CourseProperties.4247525762[Course '#])) )","v":""},{"$f":" INDEX(CourseProperties.4247525762[Hr], MATCH(Schedule.4348535863[[#This Row],[Course '#]],CourseProperties.4247525762[Course '#]))","v":3},"TBA","TBA",null,null,null,null,"CHM 3343","Organic Chemistry II","Organic II",7,null,3,150,"Lecture",{"$f":"IF(CourseProperties.4247525762[[#This Row],[Method]]<>\"\", VLOOKUP(CourseProperties.4247525762[[#This Row],[Method]], DeliveryMethod.4651566166[#Data],3,FALSE),\"\")","v":"A"},{"$f":"SUMIF(Schedule.4348535863[Course '#], CourseProperties.4247525762[[#This Row], [Course '#]], Schedule.4348535863[Limit])","v":48},null,"Cohort","Cohort Groups","G"]
["08:00:00","10:30:00","M","CHM 3342","TBWA",{"$f":" INDEX(CourseProperties.4247525762[Course Title], MATCH(Schedule.4348535863[[#This Row],[Course '#]],CourseProperties.4247525762[Course '#]))","v":"Organic Chemistry I"},{"$f":" IF( INDEX(CourseProperties.4247525762[Fee $], MATCH(Schedule.4348535863[[#This Row],[Course '#]],CourseProperties.4247525762[Course '#])) = 0, \"\", INDEX(CourseProperties.4247525762[Fee $], MATCH(Schedule.4348535863[[#This Row],[Course '#]],CourseProperties.4247525762[Course '#])) )","v":""},{"$f":" INDEX(CourseProperties.4247525762[Hr], MATCH(Schedule.4348535863[[#This Row],[Course '#]],CourseProperties.4247525762[Course '#]))","v":3},"Zhiyong Wang","MSCX",326,75,"Web-enh",null,"CHM 3352","Biochemistry","Biochem",null,null,3,150,"Lecture",{"$f":"IF(CourseProperties.4247525762[[#This Row],[Method]]<>\"\", VLOOKUP(CourseProperties.4247525762[[#This Row],[Method]], DeliveryMethod.4651566166[#Data],3,FALSE),\"\")","v":"A"},{"$f":"SUMIF(Schedule.4348535863[Course '#], CourseProperties.4247525762[[#This Row], [Course '#]], Schedule.4348535863[Limit])","v":48},null,"Weekend","In-classroom Lecture:  weekend","K"]
["11:00:00","11:50:00","MWF","CHM 3343","TEWA",{"$f":" INDEX(CourseProperties.4247525762[Course Title], MATCH(Schedule.4348535863[[#This Row],[Course '#]],CourseProperties.4247525762[Course '#]))","v":"Organic Chemistry II"},{"$f":" IF( INDEX(CourseProperties.4247525762[Fee $], MATCH(Schedule.4348535863[[#This Row],[Course '#]],CourseProperties.4247525762[Course '#])) = 0, \"\", INDEX(CourseProperties.4247525762[Fee $], MATCH(Schedule.4348535863[[#This Row],[Course '#]],CourseProperties.4247525762[Course '#])) )","v":""},{"$f":" INDEX(CourseProperties.4247525762[Hr], MATCH(Schedule.4348535863[[#This Row],[Course '#]],CourseProperties.4247525762[Course '#]))","v":3},"Zhiyong Wang","MSCX",318,48,"Web-enh",null,"CHM 3381","Physical Chemistry I","P Chem I",1,null,3,150,"Lecture",{"$f":"IF(CourseProperties.4247525762[[#This Row],[Method]]<>\"\", VLOOKUP(CourseProperties.4247525762[[#This Row],[Method]], DeliveryMethod.4651566166[#Data],3,FALSE),\"\")","v":"A"},{"$f":"SUMIF(Schedule.4348535863[Course '#], CourseProperties.4247525762[[#This Row], [Course '#]], Schedule.4348535863[Limit])","v":24},null,"L. Contract","Learning Contract","L"]
["09:00:00","09:50:00","MWF","CHM 3352","TCWA",{"$f":" INDEX(CourseProperties.4247525762[Course Title], MATCH(Schedule.4348535863[[#This Row],[Course '#]],CourseProperties.4247525762[Course '#]))","v":"Biochemistry"},{"$f":" IF( INDEX(CourseProperties.4247525762[Fee $], MATCH(Schedule.4348535863[[#This Row],[Course '#]],CourseProperties.4247525762[Course '#])) = 0, \"\", INDEX(CourseProperties.4247525762[Fee $], MATCH(Schedule.4348535863[[#This Row],[Course '#]],CourseProperties.4247525762[Course '#])) )","v":""},{"$f":" INDEX(CourseProperties.4247525762[Hr], MATCH(Schedule.4348535863[[#This Row],[Course '#]],CourseProperties.4247525762[Course '#]))","v":3},"Suzanne Lukjan","MSCX",318,48,"Web-enh",null,"CHM 3382","Physical Chemistry II","P Chem II",2,null,3,150,"Lecture",{"$f":"IF(CourseProperties.4247525762[[#This Row],[Method]]<>\"\", VLOOKUP(CourseProperties.4247525762[[#This Row],[Method]], DeliveryMethod.4651566166[#Data],3,FALSE),\"\")","v":"A"},{"$f":"SUMIF(Schedule.4348535863[Course '#], CourseProperties.4247525762[[#This Row], [Course '#]], Schedule.4348535863[Limit])","v":0},null,"Ind. Res.","Independent Research","R"]
["10:00:00","10:50:00","MWF","CHM 3381","TDWA",{"$f":" INDEX(CourseProperties.4247525762[Course Title], MATCH(Schedule.4348535863[[#This Row],[Course '#]],CourseProperties.4247525762[Course '#]))","v":"Physical Chemistry I"},{"$f":" IF( INDEX(CourseProperties.4247525762[Fee $], MATCH(Schedule.4348535863[[#This Row],[Course '#]],CourseProperties.4247525762[Course '#])) = 0, \"\", INDEX(CourseProperties.4247525762[Fee $], MATCH(Schedule.4348535863[[#This Row],[Course '#]],CourseProperties.4247525762[Course '#])) )","v":""},{"$f":" INDEX(CourseProperties.4247525762[Hr], MATCH(Schedule.4348535863[[#This Row],[Course '#]],CourseProperties.4247525762[Course '#]))","v":3},"Ian Pimienta","MSCX",318,24,"Web-enh",null,"CHM 4444","Advanced Inorganic","Adv Inorg","1, 4, 8",null,3,150,"Lecture",{"$f":"IF(CourseProperties.4247525762[[#This Row],[Method]]<>\"\", VLOOKUP(CourseProperties.4247525762[[#This Row],[Method]], DeliveryMethod.4651566166[#Data],3,FALSE),\"\")","v":"A"},{"$f":"SUMIF(Schedule.4348535863[Course '#], CourseProperties.4247525762[[#This Row], [Course '#]], Schedule.4348535863[Limit])","v":0},null,"Ind. Study","Independent Study","S"]
["08:30:00","11:20:00","T","CHM L142","TOWA",{"$f":" INDEX(CourseProperties.4247525762[Course Title], MATCH(Schedule.4348535863[[#This Row],[Course '#]],CourseProperties.4247525762[Course '#]))","v":"General Chemistry I Lab"},{"$f":" IF( INDEX(CourseProperties.4247525762[Fee $], MATCH(Schedule.4348535863[[#This Row],[Course '#]],CourseProperties.4247525762[Course '#])) = 0, \"\", INDEX(CourseProperties.4247525762[Fee $], MATCH(Schedule.4348535863[[#This Row],[Course '#]],CourseProperties.4247525762[Course '#])) )","v":50},{"$f":" INDEX(CourseProperties.4247525762[Hr], MATCH(Schedule.4348535863[[#This Row],[Course '#]],CourseProperties.4247525762[Course '#]))","v":1},"Marna Barnett","MSCX",310,24,"Web-enh",null,"CHM 4445","Instrumental Analysis","Instrumental","1, 5, 8",null,3,150,"Lecture",{"$f":"IF(CourseProperties.4247525762[[#This Row],[Method]]<>\"\", VLOOKUP(CourseProperties.4247525762[[#This Row],[Method]], DeliveryMethod.4651566166[#Data],3,FALSE),\"\")","v":"A"},{"$f":"SUMIF(Schedule.4348535863[Course '#], CourseProperties.4247525762[[#This Row], [Course '#]], Schedule.4348535863[Limit])","v":0},null,"Telecourse","Student views course at home via local TV channel","T"]
["11:30:00","14:20:00","T","CHM L142","TRWA",{"$f":" INDEX(CourseProperties.4247525762[Course Title], MATCH(Schedule.4348535863[[#This Row],[Course '#]],CourseProperties.4247525762[Course '#]))","v":"General Chemistry I Lab"},{"$f":" IF( INDEX(CourseProperties.4247525762[Fee $], MATCH(Schedule.4348535863[[#This Row],[Course '#]],CourseProperties.4247525762[Course '#])) = 0, \"\", INDEX(CourseProperties.4247525762[Fee $], MATCH(Schedule.4348535863[[#This Row],[Course '#]],CourseProperties.4247525762[Course '#])) )","v":50},{"$f":" INDEX(CourseProperties.4247525762[Hr], MATCH(Schedule.4348535863[[#This Row],[Course '#]],CourseProperties.4247525762[Course '#]))","v":1},"Ian Pimienta","MSCX",310,24,"Web-enh",null,"CHM 4491","Guided Independent Research","Ind Research",null,null,1,null,"Ind. Res.",{"$f":"IF(CourseProperties.4247525762[[#This Row],[Method]]<>\"\", VLOOKUP(CourseProperties.4247525762[[#This Row],[Method]], DeliveryMethod.4651566166[#Data],3,FALSE),\"\")","v":"R"},{"$f":"SUMIF(Schedule.4348535863[Course '#], CourseProperties.4247525762[[#This Row], [Course '#]], Schedule.4348535863[Limit])","v":0},null,"Teleconf","Teleconference between students & instructor","V"]
["14:30:00","17:20:00","T","CHM L142","TUWA",{"$f":" INDEX(CourseProperties.4247525762[Course Title], MATCH(Schedule.4348535863[[#This Row],[Course '#]],CourseProperties.4247525762[Course '#]))","v":"General Chemistry I Lab"},{"$f":" IF( INDEX(CourseProperties.4247525762[Fee $], MATCH(Schedule.4348535863[[#This Row],[Course '#]],CourseProperties.4247525762[Course '#])) = 0, \"\", INDEX(CourseProperties.4247525762[Fee $], MATCH(Schedule.4348535863[[#This Row],[Course '#]],CourseProperties.4247525762[Course '#])) )","v":50},{"$f":" INDEX(CourseProperties.4247525762[Hr], MATCH(Schedule.4348535863[[#This Row],[Course '#]],CourseProperties.4247525762[Course '#]))","v":1},"Marna Barnett","MSCX",310,24,"Web-enh",null,"CHM 4493","Guided Independent Study","Ind Study",null,null,null,null,"Ind. Study",{"$f":"IF(CourseProperties.4247525762[[#This Row],[Method]]<>\"\", VLOOKUP(CourseProperties.4247525762[[#This Row],[Method]], DeliveryMethod.4651566166[#Data],3,FALSE),\"\")","v":"S"},{"$f":"SUMIF(Schedule.4348535863[Course '#], CourseProperties.4247525762[[#This Row], [Course '#]], Schedule.4348535863[Limit])","v":0},null,"Web-enh","In-classroom lecture with internet assignments","W"]
["11:00:00","13:50:00","W","CHM L142","TEWA",{"$f":" INDEX(CourseProperties.4247525762[Course Title], MATCH(Schedule.4348535863[[#This Row],[Course '#]],CourseProperties.4247525762[Course '#]))","v":"General Chemistry I Lab"},{"$f":" IF( INDEX(CourseProperties.4247525762[Fee $], MATCH(Schedule.4348535863[[#This Row],[Course '#]],CourseProperties.4247525762[Course '#])) = 0, \"\", INDEX(CourseProperties.4247525762[Fee $], MATCH(Schedule.4348535863[[#This Row],[Course '#]],CourseProperties.4247525762[Course '#])) )","v":50},{"$f":" INDEX(CourseProperties.4247525762[Hr], MATCH(Schedule.4348535863[[#This Row],[Course '#]],CourseProperties.4247525762[Course '#]))","v":1},"Ian Pimienta","MSCX",306,24,"Web-enh",null,"CHM L115","Survey of Chemistry Lab","Survey Lab",null,50,1,110,"Lab",{"$f":"IF(CourseProperties.4247525762[[#This Row],[Method]]<>\"\", VLOOKUP(CourseProperties.4247525762[[#This Row],[Method]], DeliveryMethod.4651566166[#Data],3,FALSE),\"\")","v":"B"},{"$f":"SUMIF(Schedule.4348535863[Course '#], CourseProperties.4247525762[[#This Row], [Course '#]], Schedule.4348535863[Limit])","v":0},null,"Cross-Town","Cross-Town enrollments (ASU, AUM, Huntingdon, Faulkner","X"]
["11:00:00","13:50:00","W","CHM L142","TEWB",{"$f":" INDEX(CourseProperties.4247525762[Course Title], MATCH(Schedule.4348535863[[#This Row],[Course '#]],CourseProperties.4247525762[Course '#]))","v":"General Chemistry I Lab"},{"$f":" IF( INDEX(CourseProperties.4247525762[Fee $], MATCH(Schedule.4348535863[[#This Row],[Course '#]],CourseProperties.4247525762[Course '#])) = 0, \"\", INDEX(CourseProperties.4247525762[Fee $], MATCH(Schedule.4348535863[[#This Row],[Course '#]],CourseProperties.4247525762[Course '#])) )","v":50},{"$f":" INDEX(CourseProperties.4247525762[Hr], MATCH(Schedule.4348535863[[#This Row],[Course '#]],CourseProperties.4247525762[Course '#]))","v":1},"Gloria Pimienta","MSCX",310,24,"Web-enh",null,"CHM L142","General Chemistry I Lab","G Chm I Lab",null,50,1,170,"Lab",{"$f":"IF(CourseProperties.4247525762[[#This Row],[Method]]<>\"\", VLOOKUP(CourseProperties.4247525762[[#This Row],[Method]], DeliveryMethod.4651566166[#Data],3,FALSE),\"\")","v":"B"},{"$f":"SUMIF(Schedule.4348535863[Course '#], CourseProperties.4247525762[[#This Row], [Course '#]], Schedule.4348535863[Limit])","v":336},null,"ROTC","Off-campus lecture","Y"]
["14:00:00","16:50:00","W","CHM L142","THWA",{"$f":" INDEX(CourseProperties.4247525762[Course Title], MATCH(Schedule.4348535863[[#This Row],[Course '#]],CourseProperties.4247525762[Course '#]))","v":"General Chemistry I Lab"},{"$f":" IF( INDEX(CourseProperties.4247525762[Fee $], MATCH(Schedule.4348535863[[#This Row],[Course '#]],CourseProperties.4247525762[Course '#])) = 0, \"\", INDEX(CourseProperties.4247525762[Fee $], MATCH(Schedule.4348535863[[#This Row],[Course '#]],CourseProperties.4247525762[Course '#])) )","v":50},{"$f":" INDEX(CourseProperties.4247525762[Hr], MATCH(Schedule.4348535863[[#This Row],[Course '#]],CourseProperties.4247525762[Course '#]))","v":1},"Ian Pimienta","MSCX",306,24,"Web-enh",null,"CHM L143","General Chemistry II Lab","G Chm II Lab",3,50,1,170,"Lab",{"$f":"IF(CourseProperties.4247525762[[#This Row],[Method]]<>\"\", VLOOKUP(CourseProperties.4247525762[[#This Row],[Method]], DeliveryMethod.4651566166[#Data],3,FALSE),\"\")","v":"B"},{"$f":"SUMIF(Schedule.4348535863[Course '#], CourseProperties.4247525762[[#This Row], [Course '#]], Schedule.4348535863[Limit])","v":72},null,"Aerospace","Aerospace Ed Lecture (at Maxwell AFB)","Z"]
["08:00:00","10:50:00","W","CHM L142","TBWA",{"$f":" INDEX(CourseProperties.4247525762[Course Title], MATCH(Schedule.4348535863[[#This Row],[Course '#]],CourseProperties.4247525762[Course '#]))","v":"General Chemistry I Lab"},{"$f":" IF( INDEX(CourseProperties.4247525762[Fee $], MATCH(Schedule.4348535863[[#This Row],[Course '#]],CourseProperties.4247525762[Course '#])) = 0, \"\", INDEX(CourseProperties.4247525762[Fee $], MATCH(Schedule.4348535863[[#This Row],[Course '#]],CourseProperties.4247525762[Course '#])) )","v":50},{"$f":" INDEX(CourseProperties.4247525762[Hr], MATCH(Schedule.4348535863[[#This Row],[Course '#]],CourseProperties.4247525762[Course '#]))","v":1},"Habib Rehman","MSCX",310,24,"Web-enh",null,"CHM L242","Analytical Chemistry Lab","Anal Chm Lab",null,50,1,170,"Lab",{"$f":"IF(CourseProperties.4247525762[[#This Row],[Method]]<>\"\", VLOOKUP(CourseProperties.4247525762[[#This Row],[Method]], DeliveryMethod.4651566166[#Data],3,FALSE),\"\")","v":"B"},{"$f":"SUMIF(Schedule.4348535863[Course '#], CourseProperties.4247525762[[#This Row], [Course '#]], Schedule.4348535863[Limit])","v":24},null,"Office hrs.","Office hours","OH"]
["14:00:00","16:50:00","W","CHM L142","THWB",{"$f":" INDEX(CourseProperties.4247525762[Course Title], MATCH(Schedule.4348535863[[#This Row],[Course '#]],CourseProperties.4247525762[Course '#]))","v":"General Chemistry I Lab"},{"$f":" IF( INDEX(CourseProperties.4247525762[Fee $], MATCH(Schedule.4348535863[[#This Row],[Course '#]],CourseProperties.4247525762[Course '#])) = 0, \"\", INDEX(CourseProperties.4247525762[Fee $], MATCH(Schedule.4348535863[[#This Row],[Course '#]],CourseProperties.4247525762[Course '#])) )","v":50},{"$f":" INDEX(CourseProperties.4247525762[Hr], MATCH(Schedule.4348535863[[#This Row],[Course '#]],CourseProperties.4247525762[Course '#]))","v":1},"Chris King","MSCX",310,24,"Web-enh",null,"CHM L342","Organic Chemistry I Lab","Org I Lab",6,50,1,170,"Lab",{"$f":"IF(CourseProperties.4247525762[[#This Row],[Method]]<>\"\", VLOOKUP(CourseProperties.4247525762[[#This Row],[Method]], DeliveryMethod.4651566166[#Data],3,FALSE),\"\")","v":"B"},{"$f":"SUMIF(Schedule.4348535863[Course '#], CourseProperties.4247525762[[#This Row], [Course '#]], Schedule.4348535863[Limit])","v":72},null,"ROTCX","Off-campus lecture","Y"]
["08:30:00","11:20:00","Th","CHM L142","TOWB",{"$f":" INDEX(CourseProperties.4247525762[Course Title], MATCH(Schedule.4348535863[[#This Row],[Course '#]],CourseProperties.4247525762[Course '#]))","v":"General Chemistry I Lab"},{"$f":" IF( INDEX(CourseProperties.4247525762[Fee $], MATCH(Schedule.4348535863[[#This Row],[Course '#]],CourseProperties.4247525762[Course '#])) = 0, \"\", INDEX(CourseProperties.4247525762[Fee $], MATCH(Schedule.4348535863[[#This Row],[Course '#]],CourseProperties.4247525762[Course '#])) )","v":50},{"$f":" INDEX(CourseProperties.4247525762[Hr], MATCH(Schedule.4348535863[[#This Row],[Course '#]],CourseProperties.4247525762[Course '#]))","v":1},"Habib Rehman","MSCX",306,24,"Web-enh",null,"CHM L343","Organic Chemistry II Lab","Org II Lab",7,50,1,170,"Lab",{"$f":"IF(CourseProperties.4247525762[[#This Row],[Method]]<>\"\", VLOOKUP(CourseProperties.4247525762[[#This Row],[Method]], DeliveryMethod.4651566166[#Data],3,FALSE),\"\")","v":"B"},{"$f":"SUMIF(Schedule.4348535863[Course '#], CourseProperties.4247525762[[#This Row], [Course '#]], Schedule.4348535863[Limit])","v":48},null,"Aerospace","Aerospace Ed Lecture (at Maxwell AFB)","ZX"]
["08:30:00","11:20:00","Th","CHM L142","TOWC",{"$f":" INDEX(CourseProperties.4247525762[Course Title], MATCH(Schedule.4348535863[[#This Row],[Course '#]],CourseProperties.4247525762[Course '#]))","v":"General Chemistry I Lab"},{"$f":" IF( INDEX(CourseProperties.4247525762[Fee $], MATCH(Schedule.4348535863[[#This Row],[Course '#]],CourseProperties.4247525762[Course '#])) = 0, \"\", INDEX(CourseProperties.4247525762[Fee $], MATCH(Schedule.4348535863[[#This Row],[Course '#]],CourseProperties.4247525762[Course '#])) )","v":50},{"$f":" INDEX(CourseProperties.4247525762[Hr], MATCH(Schedule.4348535863[[#This Row],[Course '#]],CourseProperties.4247525762[Course '#]))","v":1},"Shaoyang Liu","MSCX",310,24,"Web-enh",null,"CHM L352","Biochemistry Lab","Biochem Lab",null,50,1,170,"Lab",{"$f":"IF(CourseProperties.4247525762[[#This Row],[Method]]<>\"\", VLOOKUP(CourseProperties.4247525762[[#This Row],[Method]], DeliveryMethod.4651566166[#Data],3,FALSE),\"\")","v":"B"},{"$f":"SUMIF(Schedule.4348535863[Course '#], CourseProperties.4247525762[[#This Row], [Course '#]], Schedule.4348535863[Limit])","v":48}]
["11:30:00","14:20:00","Th","CHM L142","TRWB",{"$f":" INDEX(CourseProperties.4247525762[Course Title], MATCH(Schedule.4348535863[[#This Row],[Course '#]],CourseProperties.4247525762[Course '#]))","v":"General Chemistry I Lab"},{"$f":" IF( INDEX(CourseProperties.4247525762[Fee $], MATCH(Schedule.4348535863[[#This Row],[Course '#]],CourseProperties.4247525762[Course '#])) = 0, \"\", INDEX(CourseProperties.4247525762[Fee $], MATCH(Schedule.4348535863[[#This Row],[Course '#]],CourseProperties.4247525762[Course '#])) )","v":50},{"$f":" INDEX(CourseProperties.4247525762[Hr], MATCH(Schedule.4348535863[[#This Row],[Course '#]],CourseProperties.4247525762[Course '#]))","v":1},"Habib Rehman","MSCX",306,24,"Web-enh",null,"CHM L381","Physical Chemistry I Lab","P Chm I Lab",2,50,1,170,"Lab",{"$f":"IF(CourseProperties.4247525762[[#This Row],[Method]]<>\"\", VLOOKUP(CourseProperties.4247525762[[#This Row],[Method]], DeliveryMethod.4651566166[#Data],3,FALSE),\"\")","v":"B"},{"$f":"SUMIF(Schedule.4348535863[Course '#], CourseProperties.4247525762[[#This Row], [Course '#]], Schedule.4348535863[Limit])","v":24}]
["11:30:00","14:20:00","Th","CHM L142","TRWC",{"$f":" INDEX(CourseProperties.4247525762[Course Title], MATCH(Schedule.4348535863[[#This Row],[Course '#]],CourseProperties.4247525762[Course '#]))","v":"General Chemistry I Lab"},{"$f":" IF( INDEX(CourseProperties.4247525762[Fee $], MATCH(Schedule.4348535863[[#This Row],[Course '#]],CourseProperties.4247525762[Course '#])) = 0, \"\", INDEX(CourseProperties.4247525762[Fee $], MATCH(Schedule.4348535863[[#This Row],[Course '#]],CourseProperties.4247525762[Course '#])) )","v":50},{"$f":" INDEX(CourseProperties.4247525762[Hr], MATCH(Schedule.4348535863[[#This Row],[Course '#]],CourseProperties.4247525762[Course '#]))","v":1},"Suzanne Lukjan","MSCX",310,24,"Web-enh",null,"CHM L444","Advanced Inorganic Lab","Adv Inor Lab","2, 4",50,1,170,"Lab",{"$f":"IF(CourseProperties.4247525762[[#This Row],[Method]]<>\"\", VLOOKUP(CourseProperties.4247525762[[#This Row],[Method]], DeliveryMethod.4651566166[#Data],3,FALSE),\"\")","v":"B"},{"$f":"SUMIF(Schedule.4348535863[Course '#], CourseProperties.4247525762[[#This Row], [Course '#]], Schedule.4348535863[Limit])","v":0}]
["14:30:00","17:20:00","Th","CHM L142","TUWB",{"$f":" INDEX(CourseProperties.4247525762[Course Title], MATCH(Schedule.4348535863[[#This Row],[Course '#]],CourseProperties.4247525762[Course '#]))","v":"General Chemistry I Lab"},{"$f":" IF( INDEX(CourseProperties.4247525762[Fee $], MATCH(Schedule.4348535863[[#This Row],[Course '#]],CourseProperties.4247525762[Course '#])) = 0, \"\", INDEX(CourseProperties.4247525762[Fee $], MATCH(Schedule.4348535863[[#This Row],[Course '#]],CourseProperties.4247525762[Course '#])) )","v":50},{"$f":" INDEX(CourseProperties.4247525762[Hr], MATCH(Schedule.4348535863[[#This Row],[Course '#]],CourseProperties.4247525762[Course '#]))","v":1},"Shaoyang Liu","MSCX",306,24,"Web-enh",null,"CHM L445","Instrumental Analysis Lab","Instrum Lab","2, 5",50,1,170,"Lab",{"$f":"IF(CourseProperties.4247525762[[#This Row],[Method]]<>\"\", VLOOKUP(CourseProperties.4247525762[[#This Row],[Method]], DeliveryMethod.4651566166[#Data],3,FALSE),\"\")","v":"B"},{"$f":"SUMIF(Schedule.4348535863[Course '#], CourseProperties.4247525762[[#This Row], [Course '#]], Schedule.4348535863[Limit])","v":0}]
["14:30:00","17:20:00","Th","CHM L142","TUWC",{"$f":" INDEX(CourseProperties.4247525762[Course Title], MATCH(Schedule.4348535863[[#This Row],[Course '#]],CourseProperties.4247525762[Course '#]))","v":"General Chemistry I Lab"},{"$f":" IF( INDEX(CourseProperties.4247525762[Fee $], MATCH(Schedule.4348535863[[#This Row],[Course '#]],CourseProperties.4247525762[Course '#])) = 0, \"\", INDEX(CourseProperties.4247525762[Fee $], MATCH(Schedule.4348535863[[#This Row],[Course '#]],CourseProperties.4247525762[Course '#])) )","v":50},{"$f":" INDEX(CourseProperties.4247525762[Hr], MATCH(Schedule.4348535863[[#This Row],[Course '#]],CourseProperties.4247525762[Course '#]))","v":1},"Habib Rehman","MSCX",310,24,"Web-enh",null,"Office Hr1","Office hours (1 hr/week)","Office Hrs.",null,null,null,60,"Office hrs.",{"$f":"IF(CourseProperties.4247525762[[#This Row],[Method]]<>\"\", VLOOKUP(CourseProperties.4247525762[[#This Row],[Method]], DeliveryMethod.4651566166[#Data],3,FALSE),\"\")","v":"OH"},{"$f":"SUMIF(Schedule.4348535863[Course '#], CourseProperties.4247525762[[#This Row], [Course '#]], Schedule.4348535863[Limit])","v":0}]
["08:30:00","11:20:00","T","CHM L143","TOWA",{"$f":" INDEX(CourseProperties.4247525762[Course Title], MATCH(Schedule.4348535863[[#This Row],[Course '#]],CourseProperties.4247525762[Course '#]))","v":"General Chemistry II Lab"},{"$f":" IF( INDEX(CourseProperties.4247525762[Fee $], MATCH(Schedule.4348535863[[#This Row],[Course '#]],CourseProperties.4247525762[Course '#])) = 0, \"\", INDEX(CourseProperties.4247525762[Fee $], MATCH(Schedule.4348535863[[#This Row],[Course '#]],CourseProperties.4247525762[Course '#])) )","v":50},{"$f":" INDEX(CourseProperties.4247525762[Hr], MATCH(Schedule.4348535863[[#This Row],[Course '#]],CourseProperties.4247525762[Course '#]))","v":1},"Ian Pimienta","MSCX",306,24,"Web-enh",null,"Office Hr2","Office hours (2 hr/week)","Office Hrs.",null,null,null,120,"Office hrs.",{"$f":"IF(CourseProperties.4247525762[[#This Row],[Method]]<>\"\", VLOOKUP(CourseProperties.4247525762[[#This Row],[Method]], DeliveryMethod.4651566166[#Data],3,FALSE),\"\")","v":"OH"},{"$f":"SUMIF(Schedule.4348535863[Course '#], CourseProperties.4247525762[[#This Row], [Course '#]], Schedule.4348535863[Limit])","v":0}]
["11:30:00","14:20:00","T","CHM L143","TRWA",{"$f":" INDEX(CourseProperties.4247525762[Course Title], MATCH(Schedule.4348535863[[#This Row],[Course '#]],CourseProperties.4247525762[Course '#]))","v":"General Chemistry II Lab"},{"$f":" IF( INDEX(CourseProperties.4247525762[Fee $], MATCH(Schedule.4348535863[[#This Row],[Course '#]],CourseProperties.4247525762[Course '#])) = 0, \"\", INDEX(CourseProperties.4247525762[Fee $], MATCH(Schedule.4348535863[[#This Row],[Course '#]],CourseProperties.4247525762[Course '#])) )","v":50},{"$f":" INDEX(CourseProperties.4247525762[Hr], MATCH(Schedule.4348535863[[#This Row],[Course '#]],CourseProperties.4247525762[Course '#]))","v":1},"Chris King","MSCX",306,24,"Web-enh",null,"Office Hr3","Office hours (3 hr/week)","Office Hrs.",null,null,null,180,"Office hrs.",{"$f":"IF(CourseProperties.4247525762[[#This Row],[Method]]<>\"\", VLOOKUP(CourseProperties.4247525762[[#This Row],[Method]], DeliveryMethod.4651566166[#Data],3,FALSE),\"\")","v":"OH"},{"$f":"SUMIF(Schedule.4348535863[Course '#], CourseProperties.4247525762[[#This Row], [Course '#]], Schedule.4348535863[Limit])","v":0}]
["14:30:00","17:20:00","T","CHM L143","TUWA",{"$f":" INDEX(CourseProperties.4247525762[Course Title], MATCH(Schedule.4348535863[[#This Row],[Course '#]],CourseProperties.4247525762[Course '#]))","v":"General Chemistry II Lab"},{"$f":" IF( INDEX(CourseProperties.4247525762[Fee $], MATCH(Schedule.4348535863[[#This Row],[Course '#]],CourseProperties.4247525762[Course '#])) = 0, \"\", INDEX(CourseProperties.4247525762[Fee $], MATCH(Schedule.4348535863[[#This Row],[Course '#]],CourseProperties.4247525762[Course '#])) )","v":50},{"$f":" INDEX(CourseProperties.4247525762[Hr], MATCH(Schedule.4348535863[[#This Row],[Course '#]],CourseProperties.4247525762[Course '#]))","v":1},"Chris King","MSCX",306,24,"Web-enh"]
["14:00:00","16:50:00","M","CHM L242","THWA",{"$f":" INDEX(CourseProperties.4247525762[Course Title], MATCH(Schedule.4348535863[[#This Row],[Course '#]],CourseProperties.4247525762[Course '#]))","v":"Analytical Chemistry Lab"},{"$f":" IF( INDEX(CourseProperties.4247525762[Fee $], MATCH(Schedule.4348535863[[#This Row],[Course '#]],CourseProperties.4247525762[Course '#])) = 0, \"\", INDEX(CourseProperties.4247525762[Fee $], MATCH(Schedule.4348535863[[#This Row],[Course '#]],CourseProperties.4247525762[Course '#])) )","v":50},{"$f":" INDEX(CourseProperties.4247525762[Hr], MATCH(Schedule.4348535863[[#This Row],[Course '#]],CourseProperties.4247525762[Course '#]))","v":1},"Shaoyang Liu","MSCX",306,24,"Web-enh"]
["14:30:00","17:20:00","T","CHM L342","TUWA",{"$f":" INDEX(CourseProperties.4247525762[Course Title], MATCH(Schedule.4348535863[[#This Row],[Course '#]],CourseProperties.4247525762[Course '#]))","v":"Organic Chemistry I Lab"},{"$f":" IF( INDEX(CourseProperties.4247525762[Fee $], MATCH(Schedule.4348535863[[#This Row],[Course '#]],CourseProperties.4247525762[Course '#])) = 0, \"\", INDEX(CourseProperties.4247525762[Fee $], MATCH(Schedule.4348535863[[#This Row],[Course '#]],CourseProperties.4247525762[Course '#])) )","v":50},{"$f":" INDEX(CourseProperties.4247525762[Hr], MATCH(Schedule.4348535863[[#This Row],[Course '#]],CourseProperties.4247525762[Course '#]))","v":1},"Gloria Pimienta","MSCX",305,24,"Web-enh",null,null,{"$f":"275/5","v":55}]
["08:30:00","11:20:00","T","CHM L342","TOWA",{"$f":" INDEX(CourseProperties.4247525762[Course Title], MATCH(Schedule.4348535863[[#This Row],[Course '#]],CourseProperties.4247525762[Course '#]))","v":"Organic Chemistry I Lab"},{"$f":" IF( INDEX(CourseProperties.4247525762[Fee $], MATCH(Schedule.4348535863[[#This Row],[Course '#]],CourseProperties.4247525762[Course '#])) = 0, \"\", INDEX(CourseProperties.4247525762[Fee $], MATCH(Schedule.4348535863[[#This Row],[Course '#]],CourseProperties.4247525762[Course '#])) )","v":50},{"$f":" INDEX(CourseProperties.4247525762[Hr], MATCH(Schedule.4348535863[[#This Row],[Course '#]],CourseProperties.4247525762[Course '#]))","v":1},"Gloria Pimienta","MSCX",305,24,"Web-enh"]
["11:30:00","14:20:00","T","CHM L342","TRWA",{"$f":" INDEX(CourseProperties.4247525762[Course Title], MATCH(Schedule.4348535863[[#This Row],[Course '#]],CourseProperties.4247525762[Course '#]))","v":"Organic Chemistry I Lab"},{"$f":" IF( INDEX(CourseProperties.4247525762[Fee $], MATCH(Schedule.4348535863[[#This Row],[Course '#]],CourseProperties.4247525762[Course '#])) = 0, \"\", INDEX(CourseProperties.4247525762[Fee $], MATCH(Schedule.4348535863[[#This Row],[Course '#]],CourseProperties.4247525762[Course '#])) )","v":50},{"$f":" INDEX(CourseProperties.4247525762[Hr], MATCH(Schedule.4348535863[[#This Row],[Course '#]],CourseProperties.4247525762[Course '#]))","v":1},"Gloria Pimienta","MSCX",305,24,"Web-enh"]
["14:00:00","16:50:00","W","CHM L343","THWA",{"$f":" INDEX(CourseProperties.4247525762[Course Title], MATCH(Schedule.4348535863[[#This Row],[Course '#]],CourseProperties.4247525762[Course '#]))","v":"Organic Chemistry II Lab"},{"$f":" IF( INDEX(CourseProperties.4247525762[Fee $], MATCH(Schedule.4348535863[[#This Row],[Course '#]],CourseProperties.4247525762[Course '#])) = 0, \"\", INDEX(CourseProperties.4247525762[Fee $], MATCH(Schedule.4348535863[[#This Row],[Course '#]],CourseProperties.4247525762[Course '#])) )","v":50},{"$f":" INDEX(CourseProperties.4247525762[Hr], MATCH(Schedule.4348535863[[#This Row],[Course '#]],CourseProperties.4247525762[Course '#]))","v":1},"Zhiyong Wang","MSCX",305,24,"Web-enh"]
["14:00:00","16:50:00","M","CHM L343","THWB",{"$f":" INDEX(CourseProperties.4247525762[Course Title], MATCH(Schedule.4348535863[[#This Row],[Course '#]],CourseProperties.4247525762[Course '#]))","v":"Organic Chemistry II Lab"},{"$f":" IF( INDEX(CourseProperties.4247525762[Fee $], MATCH(Schedule.4348535863[[#This Row],[Course '#]],CourseProperties.4247525762[Course '#])) = 0, \"\", INDEX(CourseProperties.4247525762[Fee $], MATCH(Schedule.4348535863[[#This Row],[Course '#]],CourseProperties.4247525762[Course '#])) )","v":50},{"$f":" INDEX(CourseProperties.4247525762[Hr], MATCH(Schedule.4348535863[[#This Row],[Course '#]],CourseProperties.4247525762[Course '#]))","v":1},"Zhiyong Wang","MSCX",305,24,"Web-enh",null,"Building","Room","Seats","Periods"]
["08:30:00","11:20:00","Th","CHM L352","TOWA",{"$f":" INDEX(CourseProperties.4247525762[Course Title], MATCH(Schedule.4348535863[[#This Row],[Course '#]],CourseProperties.4247525762[Course '#]))","v":"Biochemistry Lab"},{"$f":" IF( INDEX(CourseProperties.4247525762[Fee $], MATCH(Schedule.4348535863[[#This Row],[Course '#]],CourseProperties.4247525762[Course '#])) = 0, \"\", INDEX(CourseProperties.4247525762[Fee $], MATCH(Schedule.4348535863[[#This Row],[Course '#]],CourseProperties.4247525762[Course '#])) )","v":50},{"$f":" INDEX(CourseProperties.4247525762[Hr], MATCH(Schedule.4348535863[[#This Row],[Course '#]],CourseProperties.4247525762[Course '#]))","v":1},"Suzanne Lukjan","MSCX",305,24,"Web-enh",null,"Hawkins",117,null,{"$f":"COUNTIFS(Schedule.4348535863[Building],Locations.4550556065[[#This Row],[Building]],Schedule.4348535863[Room],Locations.4550556065[[#This Row],[Room]])","v":0}]
["14:30:00","17:20:00","Th","CHM L352","TUWA",{"$f":" INDEX(CourseProperties.4247525762[Course Title], MATCH(Schedule.4348535863[[#This Row],[Course '#]],CourseProperties.4247525762[Course '#]))","v":"Biochemistry Lab"},{"$f":" IF( INDEX(CourseProperties.4247525762[Fee $], MATCH(Schedule.4348535863[[#This Row],[Course '#]],CourseProperties.4247525762[Course '#])) = 0, \"\", INDEX(CourseProperties.4247525762[Fee $], MATCH(Schedule.4348535863[[#This Row],[Course '#]],CourseProperties.4247525762[Course '#])) )","v":50},{"$f":" INDEX(CourseProperties.4247525762[Hr], MATCH(Schedule.4348535863[[#This Row],[Course '#]],CourseProperties.4247525762[Course '#]))","v":1},"Suzanne Lukjan","MSCX",305,24,"Web-enh",null,"MSCX",214,70,{"$f":"COUNTIFS(Schedule.4348535863[Building],Locations.4550556065[[#This Row],[Building]],Schedule.4348535863[Room],Locations.4550556065[[#This Row],[Room]])","v":6}]
["14:00:00","16:50:00","F","CHM L381","THWA",{"$f":" INDEX(CourseProperties.4247525762[Course Title], MATCH(Schedule.4348535863[[#This Row],[Course '#]],CourseProperties.4247525762[Course '#]))","v":"Physical Chemistry I Lab"},{"$f":" IF( INDEX(CourseProperties.4247525762[Fee $], MATCH(Schedule.4348535863[[#This Row],[Course '#]],CourseProperties.4247525762[Course '#])) = 0, \"\", INDEX(CourseProperties.4247525762[Fee $], MATCH(Schedule.4348535863[[#This Row],[Course '#]],CourseProperties.4247525762[Course '#])) )","v":50},{"$f":" INDEX(CourseProperties.4247525762[Hr], MATCH(Schedule.4348535863[[#This Row],[Course '#]],CourseProperties.4247525762[Course '#]))","v":1},"Ian Pimienta","MSCX",305,24,"Web-enh",null,"MSCX",305,24,{"$f":"COUNTIFS(Schedule.4348535863[Building],Locations.4550556065[[#This Row],[Building]],Schedule.4348535863[Room],Locations.4550556065[[#This Row],[Room]])","v":8}]
[null,null,null,null,null,null,null,null,null,null,null,null,null,null,"MSCX",306,24,{"$f":"COUNTIFS(Schedule.4348535863[Building],Locations.4550556065[[#This Row],[Building]],Schedule.4348535863[Room],Locations.4550556065[[#This Row],[Room]])","v":9}]
[null,null,null,null,null,null,null,null,null,null,null,null,null,null,"MSCX",310,24,{"$f":"COUNTIFS(Schedule.4348535863[Building],Locations.4550556065[[#This Row],[Building]],Schedule.4348535863[Room],Locations.4550556065[[#This Row],[Room]])","v":9}]
[null,null,null,null,null,null,null,null,null,null,null,null,null,null,"MSCX",318,50,{"$f":"COUNTIFS(Schedule.4348535863[Building],Locations.4550556065[[#This Row],[Building]],Schedule.4348535863[Room],Locations.4550556065[[#This Row],[Room]])","v":4}]
[null,null,null,null,null,null,null,null,null,null,null,null,null,null,"MSCX",326,121,{"$f":"COUNTIFS(Schedule.4348535863[Building],Locations.4550556065[[#This Row],[Building]],Schedule.4348535863[Room],Locations.4550556065[[#This Row],[Room]])","v":2}]
[null,null,null,null,null,null,null,null,null,null,null,null,null,null,"TBA","",null,{"$f":"COUNTIFS(Schedule.4348535863[Building],Locations.4550556065[[#This Row],[Building]],Schedule.4348535863[Room],Locations.4550556065[[#This Row],[Room]])","v":1}]
[]
[]
[null,null,null,null,null,null,null,null,null,null,null,null,null,null,"Instructor","Teaching Load Hours","Release Time","Total"]
[null,null,null,null,null,null,null,null,null,null,null,null,null,null,"Chris King",{"$f":"SUM(IF(Schedule.4348535863[Instructor] = Instructors.4449545964[[#This Row],[Instructor]], IF(VALUE(Schedule.4348535863[Limit]) > 70, 6, IF(MID(Schedule.4348535863[Course '#], 5, 1) = \"L\", (Schedule.4348535863[Hr] + 3)/2, Schedule.4348535863[Hr])), 0))","v":15},null,{"$f":"Instructors.4449545964[[#This Row],[Teaching Load Hours]]+Instructors.4449545964[[#This Row],[Release Time]]","v":15}]
[null,null,null,null,null,null,null,null,null,null,null,null,null,null,"Zhiyong Wang",{"$f":"SUM(IF(Schedule.4348535863[Instructor] = Instructors.4449545964[[#This Row],[Instructor]], IF(VALUE(Schedule.4348535863[Limit]) > 70, 6, IF(MID(Schedule.4348535863[Course '#], 5, 1) = \"L\", (Schedule.4348535863[Hr] + 3)/2, Schedule.4348535863[Hr])), 0))","v":13},3,{"$f":"Instructors.4449545964[[#This Row],[Teaching Load Hours]]+Instructors.4449545964[[#This Row],[Release Time]]","v":16}]
[null,null,null,null,null,null,null,null,null,null,null,null,null,null,"Ian Pimienta",{"$f":"SUM(IF(Schedule.4348535863[Instructor] = Instructors.4449545964[[#This Row],[Instructor]], IF(VALUE(Schedule.4348535863[Limit]) > 70, 6, IF(MID(Schedule.4348535863[Course '#], 5, 1) = \"L\", (Schedule.4348535863[Hr] + 3)/2, Schedule.4348535863[Hr])), 0))","v":13},null,{"$f":"Instructors.4449545964[[#This Row],[Teaching Load Hours]]+Instructors.4449545964[[#This Row],[Release Time]]","v":13}]
[null,null,null,null,null,null,null,null,null,null,null,null,null,null,"Gloria Pimienta",{"$f":"SUM(IF(Schedule.4348535863[Instructor] = Instructors.4449545964[[#This Row],[Instructor]], IF(VALUE(Schedule.4348535863[Limit]) > 70, 6, IF(MID(Schedule.4348535863[Course '#], 5, 1) = \"L\", (Schedule.4348535863[Hr] + 3)/2, Schedule.4348535863[Hr])), 0))","v":14},null,{"$f":"Instructors.4449545964[[#This Row],[Teaching Load Hours]]+Instructors.4449545964[[#This Row],[Release Time]]","v":14}]
[null,null,null,null,null,null,null,null,null,null,null,null,null,null,"Shaoyang Liu",{"$f":"SUM(IF(Schedule.4348535863[Instructor] = Instructors.4449545964[[#This Row],[Instructor]], IF(VALUE(Schedule.4348535863[Limit]) > 70, 6, IF(MID(Schedule.4348535863[Course '#], 5, 1) = \"L\", (Schedule.4348535863[Hr] + 3)/2, Schedule.4348535863[Hr])), 0))","v":9},3,{"$f":"Instructors.4449545964[[#This Row],[Teaching Load Hours]]+Instructors.4449545964[[#This Row],[Release Time]]","v":12}]
[null,null,null,null,null,null,null,null,null,null,null,null,null,null,"Suzanne Lukjan",{"$f":"SUM(IF(Schedule.4348535863[Instructor] = Instructors.4449545964[[#This Row],[Instructor]], IF(VALUE(Schedule.4348535863[Limit]) > 70, 6, IF(MID(Schedule.4348535863[Course '#], 5, 1) = \"L\", (Schedule.4348535863[Hr] + 3)/2, Schedule.4348535863[Hr])), 0))","v":12},null,{"$f":"Instructors.4449545964[[#This Row],[Teaching Load Hours]]+Instructors.4449545964[[#This Row],[Release Time]]","v":12}]
[null,null,null,null,null,null,null,null,null,null,null,null,null,null,"Marna Barnett",{"$f":"SUM(IF(Schedule.4348535863[Instructor] = Instructors.4449545964[[#This Row],[Instructor]], IF(VALUE(Schedule.4348535863[Limit]) > 70, 6, IF(MID(Schedule.4348535863[Course '#], 5, 1) = \"L\", (Schedule.4348535863[Hr] + 3)/2, Schedule.4348535863[Hr])), 0))","v":10},null,{"$f":"Instructors.4449545964[[#This Row],[Teaching Load Hours]]+Instructors.4449545964[[#This Row],[Release Time]]","v":10}]
[null,null,null,null,null,null,null,null,null,null,null,null,null,null,"Habib Rehman",{"$f":"SUM(IF(Schedule.4348535863[Instructor] = Instructors.4449545964[[#This Row],[Instructor]], IF(VALUE(Schedule.4348535863[Limit]) > 70, 6, IF(MID(Schedule.4348535863[Course '#], 5, 1) = \"L\", (Schedule.4348535863[Hr] + 3)/2, Schedule.4348535863[Hr])), 0))","v":11},null,{"$f":"Instructors.4449545964[[#This Row],[Teaching Load Hours]]+Instructors.4449545964[[#This Row],[Release Time]]","v":11}]
[]
[null,null,null,null,null,null,null,null,null,null,null,null,null,null,null,{"$f":"SUM(P52:P59) / 12","v":8.0833333333333339},"FTE"]
[null,null,null,null,null,null,null,null,null,null,null,null,null,null,null,{"$f":"SUM(Instructors.4449545964[Total]) - 12 * COUNTIF(Instructors.4449545964[Total],\">3\")","v":7},"overloads"]
[]
[]
[null,null,null,null,null,null,null,null,null,null,null,null,null,null,null,null,null,"Last night lab"]
[null,null,null,null,null,null,null,null,null,null,null,null,null,null,null,"Chris King",410339,"X"]
[null,null,null,null,null,null,null,null,null,null,null,null,null,null,null,"Marna Barnett",225435]
[null,null,null,null,null,null,null,null,null,null,null,null,null,null,null,"Suzanne Lukjan",1167918]
[null,null,null,null,null,null,null,null,null,null,null,null,null,null,null,"Ian Pimienta",1325980]
[null,null,null,null,null,null,null,null,null,null,null,null,null,null,null,"Gloria Pimienta",1344855]
[null,null,null,null,null,null,null,null,null,null,null,null,null,null,null,"Zhiyong Wang ",1406555]
[null,null,null,null,null,null,null,null,null,null,null,null,null,null,null,"Shaoyang Liu ",1415540]
[null,null,null,null,null,null,null,null,null,null,null,null,null,null,null,"Habib Rehman",1483745]
[]
[]
[]
[]
[]
[]
[]
[null,null,null,null,null,null,null,null,null,null,null,null,null,null,null,"Veteran's Day:  on Friday"]
[null,null,null,null,null,null,null,null,null,null,null,null,null,null,null,"Labor Day:  always Monday"]
[null,null,null,null,null,null,null,null,null,null,null,null,null,null,null,"Homecoming:  no classes afger noon, Friday"]

{"sheet":"Sheet1","index":1,"n_rows":51,"n_cols":36,"rows_kept":51,"cut":false,"hidden":false,"merged":[]}
[]
[]
["Time","End","Days","Course #","Section","Course Title","Fee $","Hr","Instructor","Building","Room","Limit",null,null,null,null,null,null,null,null,null,"DEPT","SEM","Term","LOC","Course/Number","Section Code","Course Title","Instructor Name/ID #","Building Name/Code","Room Number","Time","Day","Cap","Fee","Credit Hrs"]
["08:00:00","08:50:00","MWF","CHM 1142","TBAA","General Chemistry I","",3,"Gloria Pimienta","McCall",214,48,{"$f":"LEFT(I4, FIND(\" \",I4)-1)","v":"Gloria"},{"$f":"RIGHT(I4, LEN(I4)-FIND(\" \",I4)+1)","v":" Pimienta"},{"$f":"  TEXT( (IF(A4>0.5,A4-0.5,A4)), \"h:mm\") & \"-\" & TEXT(B4, \"h:mm AM/PM\")","v":"8:00-8:50 AM"},{"$f":"VLOOKUP(I4,$P$43:$Q$50,2,FALSE)","v":1344855},{"$f":"LEFT(M4,1) & \". \" & N4 & \"/ \" & P4","v":"G.  Pimienta/ 1344855"},null,null,null,null,"CHM","Spring","Sp","T01",{"$f":"LEFT(D4,3) & \"-\" & MID(D4, 5, 4)","v":"CHM-1142"},{"$f":"E4","v":"TBAA"},{"$f":"F4","v":"General Chemistry I"},{"$f":"Q4","v":"G.  Pimienta/ 1344855"},"MSCX/152",{"$f":"K4","v":214},{"$f":"O4","v":"8:00-8:50 AM"},{"$f":"C4","v":"MWF"},{"$f":"L4","v":48},{"$f":"G4","v":""},{"$f":"H4","v":3}]
["09:00:00","09:50:00","MWF","CHM 1142","TCAA","General Chemistry I","",3,"Gloria Pimienta","McCall",214,48,{"$f":"LEFT(I5, FIND(\" \",I5)-1)","v":"Gloria"},{"$f":"RIGHT(I5, LEN(I5)-FIND(\" \",I5)+1)","v":" Pimienta"},{"$f":"  TEXT( (IF(A5>0.5,A5-0.5,A5)), \"h:mm\") & \"-\" & TEXT(B5, \"h:mm AM/PM\")","v":"9:00-9:50 AM"},{"$f":"VLOOKUP(I5,$P$43:$Q$50,2,FALSE)","v":1344855},{"$f":"LEFT(M5,1) & \". \" & N5 & \"/ \" & P5","v":"G.  Pimienta/ 1344855"},null,null,null,null,"CHM","Fall","Fa","T01",{"$f":"LEFT(D5,3)","v":"CHM"},{"$f":"E5","v":"TCAA"},{"$f":"F5","v":"General Chemistry I"},{"$f":"N5","v":" Pimienta"},"MSCX/152",{"$f":"K5","v":214},{"$f":"O5","v":"9:00-9:50 AM"},{"$f":"C5","v":"MWF"},{"$f":"L5","v":48},{"$f":"G5","v":""},{"$f":"H5","v":3}]
["10:00:00","10:50:00","MWF","CHM 1142","TDAA","General Chemistry I","",3,"Marna Barnett","McCall",214,48,"Marna"," Barnett","10:00-10:50 AM",225435,"M.  Barnett/ 225435",null,null,null,null,"CHM","Fall","Fa","T01","CHM","TDAA","General Chemistry I"," Barnett","MSCX/152",214,"10:00-10:50 AM","MWF",48,"",3]
["11:00:00","11:50:00","MWF","CHM 1142","TEAA","General Chemistry I","",3,"Marna Barnett","McCall",214,48,"Marna"," Barnett","11:00-11:50 AM",225435,"M.  Barnett/ 225435",null,null,null,null,"CHM","Fall","Fa","T01","CHM","TEAA","General Chemistry I"," Barnett","MSCX/152",214,"11:00-11:50 AM","MWF",48,"",3]
["11:00:00","11:50:00","MWF","CHM 1142","TEAB","General Chemistry I","",3,"Suzanne Lukjan","McCall",326,48,"Suzanne"," Lukjan","11:00-11:50 AM",1167918,"S.  Lukjan/ 1167918",null,null,null,null,"CHM","Fall","Fa","T01","CHM","TEAB","General Chemistry I"," Lukjan","MSCX/152",326,"11:00-11:50 AM","MWF",48,"",3]
["13:00:00","13:50:00","MWF","CHM 1142","TGAA","General Chemistry I","",3,"H. Rehman","McCall",214,48,"H."," Rehman","1:00-1:50 PM",0,"H.  Rehman/ 0",null,null,null,null,"CHM","Fall","Fa","T01","CHM","TGAA","General Chemistry I"," Rehman","MSCX/152",214,"1:00-1:50 PM","MWF",48,"",3]
["08:00:00","08:50:00","MWF","CHM 1143","TBAA","General Chemistry II","",3,"Chris King","McCall",318,48,"Chris"," King","8:00-8:50 AM",410339,"C.  King/ 410339",null,null,null,null,"CHM","Fall","Fa","T01","CHM","TBAA","General Chemistry II"," King","MSCX/152",318,"8:00-8:50 AM","MWF",48,"",3]
["12:00:00","12:50:00","MWF","CHM 1143","TFAA","General Chemistry II","",3,"Ian Pimienta","McCall",214,48,"Ian"," Pimienta","12:00-12:50 PM",1325980,"I.  Pimienta/ 1325980",null,null,null,null,"CHM","Fall","Fa","T01","CHM","TFAA","General Chemistry II"," Pimienta","MSCX/152",214,"12:00-12:50 PM","MWF",48,"",3]
["09:00:00","09:50:00","MWF","CHM 3342","TCAA","Organic Chemistry I","",3,"Zhiyong Wang","McCall",318,48,"Zhiyong"," Wang","9:00-9:50 AM",1406555,"Z.  Wang/ 1406555",null,null,null,null,"CHM","Fall","Fa","T01","CHM","TCAA","Organic Chemistry I"," Wang","MSCX/152",318,"9:00-9:50 AM","MWF",48,"",3]
["11:00:00","11:50:00","MWF","CHM 3343","TEAA","Organic Chemistry II","",3,"Zhiyong Wang","McCall",318,48,"Zhiyong"," Wang","11:00-11:50 AM",1406555,"Z.  Wang/ 1406555",null,null,null,null,"CHM","Fall","Fa","T01","CHM","TEAA","Organic Chemistry II"," Wang","MSCX/152",318,"11:00-11:50 AM","MWF",48,"",3]
["10:00:00","10:50:00","MWF","CHM 3382","TDAA","Physical Chemistry II","",3,"Ian Pimienta","McCall",318,16,"Ian"," Pimienta","10:00-10:50 AM",1325980,"I.  Pimienta/ 1325980",null,null,null,null,"CHM","Fall","Fa","T01","CHM","TDAA","Physical Chemistry II"," Pimienta","MSCX/152",318,"10:00-10:50 AM","MWF",16,"",3]
["14:00:00","14:50:00","MWF","CHM 3352","THAA","Biochemistry","",3,"Suzanne Lukjan","McCall",318,25,"Suzanne"," Lukjan","2:00-2:50 PM",1167918,"S.  Lukjan/ 1167918",null,null,null,null,"CHM","Fall","Fa","T01","CHM","THAA","Biochemistry"," Lukjan","MSCX/152",318,"2:00-2:50 PM","MWF",25,"",3]
["13:00:00","13:50:00","MWF","CHM 4444","TGAA","Advanced Inorganic","",3,"Chris King","McCall",318,16,"Chris"," King","1:00-1:50 PM",410339,"C.  King/ 410339",null,null,null,null,"CHM","Fall","Fa","T01","CHM","TGAA","Advanced Inorganic"," King","MSCX/152",318,"1:00-1:50 PM","MWF",16,"",3]
["12:00:00","12:50:00","MWF","CHM 4445","TFAA","Instrumental Analysis","",3,"Shaoyang Liu","McCall",318,16,{"$f":"LEFT(I17, FIND(\" \",I17)-1)","v":"Shaoyang"},{"$f":"RIGHT(I17, LEN(I17)-FIND(\" \",I17)+1)","v":" Liu"},{"$f":"  TEXT( (IF(A17>0.5,A17-0.5,A17)), \"h:mm\") & \"-\" & TEXT(B17, \"h:mm AM/PM\")","v":"12:00-12:50 PM"},{"$f":"VLOOKUP(I17,$P$43:$Q$50,2,FALSE)","v":1415540},"S.  Liu/ 1415540",null,null,null,null,"CHM","Fall","Fa","T01","CHM","TFAA","Instrumental Analysis"," Liu","MSCX/152",318,"12:00-12:50 PM","MWF",16,"",3]
["TBA",null,"TBA","CHM 4491","TZRA","Guided Independent Research","",1,"TBA","TBA",null,1,"TBA","TBA","TBA","TBA","TBA",null,null,null,null,"CHM","Fall","Fa","T01","CHM","TZRA","Guided Independent Research","TBA","MSCX/152",0,"TBA","TBA",1,"",1]
["08:30:00","11:20:00","T","CHM L142","TOBA","General Chemistry I Lab",50,1,"Marna Barnett","McCall",310,24,"Marna"," Barnett","8:30-11:20 AM",225435,"M.  Barnett/ 225435",null,null,null,null,"CHM","Fall","Fa","T01","CHM","TOBA","General Chemistry I Lab"," Barnett","MSCX/152",310,"8:30-11:20 AM","T",24,50,1]
["11:30:00","14:20:00","T","CHM L142","TRBA","General Chemistry I Lab",50,1,"Gloria Pimienta","McCall",310,24,"Gloria"," Pimienta","11:30-2:20 PM",1344855,"G.  Pimienta/ 1344855",null,null,null,null,"CHM","Fall","Fa","T01","CHM","TRBA","General Chemistry I Lab"," Pimienta","MSCX/152",310,"11:30-2:20 PM","T",24,50,1]
["14:30:00","17:20:00","T","CHM L142","TUBA","General Chemistry I Lab",50,1,"Marna Barnett","McCall",310,24,"Marna"," Barnett","2:30-5:20 PM",225435,"M.  Barnett/ 225435",null,null,null,null,"CHM","Fall","Fa","T01","CHM","TUBA","General Chemistry I Lab"," Barnett","MSCX/152",310,"2:30-5:20 PM","T",24,50,1]
["14:00:00","16:50:00","W","CHM L142","THBA","General Chemistry I Lab",50,1,"Ian Pimienta","McCall",310,24,"Ian"," Pimienta","2:00-4:50 PM",1325980,"I.  Pimienta/ 1325980",null,null,null,null,"CHM","Fall","Fa","T01","CHM","THBA","General Chemistry I Lab"," Pimienta","MSCX/152",310,"2:00-4:50 PM","W",24,50,1]
["18:00:00","20:50:00","W","CHM L142","TLBA","General Chemistry I Lab",50,1,"H. Rehman","McCall",310,24,"H."," Rehman","6:00-8:50 PM",0,"H.  Rehman/ 0",null,null,null,null,"CHM","Fall","Fa","T01","CHM","TLBA","General Chemistry I Lab"," Rehman","MSCX/152",310,"6:00-8:50 PM","W",24,50,1]
["08:30:00","11:20:00","Th","CHM L142","TOBB","General Chemistry I Lab",50,1,"Gloria Pimienta","McCall",306,24,"Gloria"," Pimienta","8:30-11:20 AM",1344855,"G.  Pimienta/ 1344855",null,null,null,null,"CHM","Fall","Fa","T01","CHM","TOBB","General Chemistry I Lab"," Pimienta","MSCX/152",306,"8:30-11:20 AM","Th",24,50,1]
["08:30:00","11:20:00","Th","CHM L142","TOBC","General Chemistry I Lab",50,1,"Suzanne Lukjan","McCall",310,24,"Suzanne"," Lukjan","8:30-11:20 AM",1167918,"S.  Lukjan/ 1167918",null,null,null,null,"CHM","Fall","Fa","T01","CHM","TOBC","General Chemistry I Lab"," Lukjan","MSCX/152",310,"8:30-11:20 AM","Th",24,50,1]
["11:30:00","14:20:00","Th","CHM L142","TRBB","General Chemistry I Lab",50,1,"Ian Pimienta","McCall",306,24,"Ian"," Pimienta","11:30-2:20 PM",1325980,"I.  Pimienta/ 1325980",null,null,null,null,"CHM","Fall","Fa","T01","CHM","TRBB","General Chemistry I Lab"," Pimienta","MSCX/152",306,"11:30-2:20 PM","Th",24,50,1]
["14:30:00","17:20:00","Th","CHM L142","TUBB","General Chemistry I Lab",50,1,"Ian Pimienta","McCall",306,24,"Ian"," Pimienta","2:30-5:20 PM",1325980,"I.  Pimienta/ 1325980",null,null,null,null,"CHM","Fall","Fa","T01","CHM","TUBB","General Chemistry I Lab"," Pimienta","MSCX/152",306,"2:30-5:20 PM","Th",24,50,1]
["14:30:00","17:20:00","Th","CHM L142","TUBC","General Chemistry I Lab",50,1,"Suzanne Lukjan","McCall",310,24,"Suzanne"," Lukjan","2:30-5:20 PM",1167918,"S.  Lukjan/ 1167918",null,null,null,null,"CHM","Fall","Fa","T01","CHM","TUBC","General Chemistry I Lab"," Lukjan","MSCX/152",310,"2:30-5:20 PM","Th",24,50,1]
["11:30:00","14:20:00","Th","CHM L142","TRBC","General Chemistry I Lab",50,1,"H. Rehman","McCall",310,24,"H."," Rehman","11:30-2:20 PM",0,"H.  Rehman/ 0",null,null,null,null,"CHM","Fall","Fa","T01","CHM","TRBC","General Chemistry I Lab"," Rehman","MSCX/152",310,"11:30-2:20 PM","Th",24,50,1]
["08:30:00","11:20:00","T","CHM L143","TOBA","General Chemistry II Lab",50,1,"Chris King","McCall",306,24,"Chris"," King","8:30-11:20 AM",410339,"C.  King/ 410339",null,null,null,null,"CHM","Fall","Fa","T01","CHM","TOBA","General Chemistry II Lab"," King","MSCX/152",306,"8:30-11:20 AM","T",24,50,1]
["11:30:00","14:20:00","T","CHM L143","TRBA","General Chemistry II Lab",50,1,"Shaoyang Liu","McCall",306,24,"Shaoyang"," Liu","11:30-2:20 PM",1415540,"S.  Liu/ 1415540",null,null,null,null,"CHM","Fall","Fa","T01","CHM","TRBA","General Chemistry II Lab"," Liu","MSCX/152",306,"11:30-2:20 PM","T",24,50,1]
["14:30:00","17:20:00","T","CHM L143","TUBA","General Chemistry II Lab",50,1,"Chris King","McCall",306,24,"Chris"," King","2:30-5:20 PM",410339,"C.  King/ 410339",null,null,null,null,"CHM","Fall","Fa","T01","CHM","TUBA","General Chemistry II Lab"," King","MSCX/152",306,"2:30-5:20 PM","T",24,50,1]
["14:00:00","16:50:00","W","CHM L143","THBA","General Chemistry II Lab",50,1,"Shaoyang Liu","McCall",306,24,"Shaoyang"," Liu","2:00-4:50 PM",1415540,"S.  Liu/ 1415540",null,null,null,null,"CHM","Fall","Fa","T01","CHM","THBA","General Chemistry II Lab"," Liu","MSCX/152",306,"2:00-4:50 PM","W",24,50,1]
["14:30:00","17:20:00","T","CHM L342","TUBA","Organic Chemistry I Lab",50,1,"Gloria Pimienta","McCall",305,24,"Gloria"," Pimienta","2:30-5:20 PM",1344855,"G.  Pimienta/ 1344855",null,null,null,null,"CHM","Fall","Fa","T01","CHM","TUBA","Organic Chemistry I Lab"," Pimienta","MSCX/152",305,"2:30-5:20 PM","T",24,50,1]
["08:30:00","11:20:00","Th","CHM L342","TOBA","Organic Chemistry I Lab",50,1,"Zhiyong Wang","McCall",305,24,"Zhiyong"," Wang","8:30-11:20 AM",1406555,"Z.  Wang/ 1406555",null,null,null,null,"CHM","Fall","Fa","T01","CHM","TOBA","Organic Chemistry I Lab"," Wang","MSCX/152",305,"8:30-11:20 AM","Th",24,50,1]
["14:30:00","17:20:00","Th","CHM L343","TUBA","Organic Chemistry II Lab",50,1,"Zhiyong Wang","McCall",305,24,"Zhiyong"," Wang","2:30-5:20 PM",1406555,"Z.  Wang/ 1406555",null,null,null,null,"CHM","Fall","Fa","T01","CHM","TUBA","Organic Chemistry II Lab"," Wang","MSCX/152",305,"2:30-5:20 PM","Th",24,50,1]
["14:00:00","16:50:00","W","CHM L343","THBA","Organic Chemistry II Lab",50,1,"Zhiyong Wang","McCall",305,24,{"$f":"LEFT(I37, FIND(\" \",I37)-1)","v":"Zhiyong"},{"$f":"RIGHT(I37, LEN(I37)-FIND(\" \",I37)+1)","v":" Wang"},{"$f":"  TEXT( (IF(A37>0.5,A37-0.5,A37)), \"h:mm\") & \"-\" & TEXT(B37, \"h:mm AM/PM\")","v":"2:00-4:50 PM"},1406555,"Z.  Wang/ 1406555",null,null,null,null,"CHM","Fall","Fa","T01","CHM","THBA","Organic Chemistry II Lab"," Wang","MSCX/152",305,"2:00-4:50 PM","W",24,50,1]
["15:00:00","17:50:00","M","CHM L352","TIBA","Biochemistry Lab",50,1,"Suzanne Lukjan","McCall",305,24,"Suzanne"," Lukjan","3:00-5:50 PM",1167918,"S.  Lukjan/ 1167918",null,null,null,null,"CHM","Fall","Fa","T01","CHM","TIBA","Biochemistry Lab"," Lukjan","MSCX/152",305,"3:00-5:50 PM","M",24,50,1]
["14:00:00","16:50:00","F","CHM L444","THBA","Advanced Inorganic Lab",50,1,"Chris King","McCall",305,15,"Chris"," King","2:00-4:50 PM",410339,"C.  King/ 410339",null,null,null,null,"CHM","Fall","Fa","T01","CHM","THBA","Advanced Inorganic Lab"," King","MSCX/152",305,"2:00-4:50 PM","F",15,50,1]
["14:00:00","16:50:00","M","CHM L445","THBA","Instrumental Analysis Lab",50,1,"Shaoyang Liu","McCall",306,15,"Shaoyang"," Liu","2:00-4:50 PM",1415540,"S.  Liu/ 1415540",null,null,null,null,"CHM","Fall","Fa","T01","CHM","THBA","Instrumental Analysis Lab"," Liu","MSCX/152",306,"2:00-4:50 PM","M",15,50,1]
[]
[null,null,null,null,null,null,null,null,null,null,null,null,null,null,null,null,null,null,null,null,null,null,null,null,null,"Course/Number","Section Code","Course Title","Instructor Name/ID #","Building Name/Code","Room Number","Time","Day","Cap","Fee","Credit Hrs"]
[null,null,null,null,null,null,null,null,null,null,null,null,null,null,null,"Chris King",410339,null,null,null,null,null,null,null,null,null,null,null,null,null,214]
[null,null,null,null,null,null,null,null,null,null,null,null,null,null,null,"Gloria Pimienta",1344855,null,null,null,null,null,null,null,null,"CHM-1142","TBAA ","General Chemistry I","G. Pimienta, 134485","MSCX-152",214," 08:00AM - 08:50AM","MWF",48,null,3]
[null,null,null,null,null,null,null,null,null,null,null,null,null,null,null,"Ian Pimienta",1325980]
[null,null,null,null,null,null,null,null,null,null,null,null,null,null,null,"Marna Barnett",225435]
[null,null,null,null,null,null,null,null,null,null,null,null,null,null,null,"Shaoyang Liu",1415540]
[null,null,null,null,null,null,null,null,null,null,null,null,null,null,null,"Suzanne Lukjan",1167918]
[null,null,null,null,null,null,null,null,null,null,null,null,null,null,null,"H. Rehman",0]
[null,null,null,null,null,null,null,null,null,null,null,null,null,null,null,"Zhiyong Wang",1406555]
[null,null,null,null,null,null,null,null,null,null,null,null,null,null,null,"TBA","-"]